fUSD/lending_fUSD_20260217
["ID","MTS","AMOUNT","RATE_DAILY","PERIOD"]
[405846604,1771357851376,-594.05284132,0.00014795,2]
[405846605,1771357851386,-3000.0,0.00014912,2]
[405846606,1771357851395,-2453.91707801,0.00014912,2]
[405846607,1771357851405,-3000.0,0.00014912,2]
[405846608,1771357851414,-200.0,0.00014932,2]
[405846609,1771357851424,-1500.0,0.00014968,2]
[405846610,1771357851435,-1000.0,0.00014968,2]
[405846611,1771357851444,-1500.0,0.00014968,2]
[405846612,1771357851453,-1500.0,0.00014968,2]
[405846613,1771357851463,-1500.0,0.00014968,2]
[405846614,1771357851472,-504.47861685,0.00014968,2]
[405846615,1771357851481,-501.69367829,0.00014968,2]
[405846616,1771357851490,-1500.0,0.00014968,2]
[405846617,1771357851500,-1500.0,0.00014968,2]
[405846618,1771357851509,-1500.0,0.00014968,2]
[405846619,1771357851518,-803.51620924,0.00014968,2]
[405846620,1771357851528,-1500.0,0.00014968,2]
[405846621,1771357851537,-395.07222913,0.00014968,2]
[405846622,1771357851547,-1000.0,0.00014968,2]
[405846623,1771357851556,-1097.87159044,0.00014968,2]
[405846624,1771357851567,-1597.03636758,0.00014968,2]
[405846625,1771357851577,-1500.0,0.00014968,2]
[405846626,1771357851587,-1512.37454404,0.00014968,2]
[405846627,1771357851596,-1500.0,0.00014968,2]
[405846628,1771357851606,-1500.0,0.00014968,2]
[405846629,1771357851616,-505.49608217,0.00014968,2]
[405846630,1771357851626,-1500.0,0.00014968,2]
[405846631,1771357851635,-446.50731055,0.00015,5]
[405846632,1771357851645,-157.20584844,0.00015,5]
[405846633,1771357851656,-250.0,0.00015,2]
[405846634,1771357851670,-150.0,0.0001505,2]
[405846635,1771357851679,-4479.21,0.00015068,2]
[405846636,1771357851689,-900.0,0.00015068,2]
[405846637,1771357851701,-445.585732,0.00015068,2]
[405846638,1771357851713,-445.585732,0.00015068,2]
[405846639,1771357851725,-445.585732,0.00015068,2]
[405846640,1771357851735,-445.585732,0.00015068,2]
[405846641,1771357851744,-201.93286099,0.00015235,2]
[405846642,1771357851754,-171.52852621,0.00015235,2]
[405846643,1771357851765,-320.74051982,0.00015235,2]
[405846644,1771357851776,-1000.0,0.00015279,7]
[405846645,1771357851787,-3500.0,0.0001546,2]
[405846646,1771357851796,-3500.0,0.0001546,2]
[405846647,1771357851807,-150.0,0.00015497,2]
[405846648,1771357851817,-500.0,0.00015516,2]
[405846649,1771357851827,-360.43974274,0.00015516,2]
[405846650,1771357851837,-1120.78233815,0.00015516,2]
[405846651,1771357851848,-2000.0,0.00015516,2]
[405846652,1771357851858,-2000.0,0.00015516,2]
[405846653,1771357851868,-1508.47777759,0.00015516,2]
[405846654,1771357851877,-2000.0,0.00015516,2]
[405846655,1771357851887,-2000.0,0.00015516,2]
[405846656,1771357851896,-2000.0,0.00015516,2]
[405846657,1771357851905,-2000.0,0.00015516,2]
[405846658,1771357851914,-1929.20363046,0.00015516,2]
[405846659,1771357851924,-158.35387756,0.00015516,2]
[405846660,1771357851934,-481.75678797,0.00015648,2]
[405846661,1771357851943,-150.0,0.00015674,2]
[405846662,1771357851953,-173.0767049,0.00015744,2]
[405846663,1771357851962,-4479.21,0.00015753,2]
[405846664,1771357851971,-747.8093786,0.00015782,2]
[405846665,1771357851980,-209.40437684,0.00015783,2]
[405846666,1771357851990,-332.60791905,0.00015783,2]
[405846667,1771357851999,-3068.0,0.00015813,2]
[405846668,1771357852009,-481.75678796,0.00015827,2]
[405846669,1771357852020,-10700.0,0.000159,5]
[405846670,1771357852032,-5000.0,0.0001596,2]
[405846671,1771357852044,-15296.93137855,0.00015981,2]
[405846672,1771357852054,-150.0,0.0001599,2]
[405846673,1771357852064,-150.0,0.00016,2]
[405846674,1771357852073,-150.0,0.00016,2]
[405846675,1771357852082,-276.734435,0.00016,2]
[405846676,1771357852093,-1494.73225771,0.00016008,2]
[405846677,1771357852103,-857.65528936,0.00016008,2]
[405846678,1771357852113,-150.0,0.00016025,2]
[405846679,1771357852124,-481.75678797,0.00016039,2]
[405846680,1771357852134,-353.7739931,0.00016064,2]
[405846681,1771357852145,-413.64494959,0.00016064,2]
[405846682,1771357852156,-2500.0,0.00016064,2]
[405846683,1771357852165,-960.3517219,0.00016064,2]
[405846684,1771357852176,-1007.7222609,0.00016064,2]
[405846685,1771357852185,-1787.66016397,0.00016064,2]
[405846686,1771357852196,-2500.0,0.00016064,2]
[405846687,1771357852206,-2500.0,0.00016064,2]
[405846688,1771357852216,-2000.0,0.00016082,2]
[405846689,1771357852225,-9999.99,0.00016116,2]
[405846690,1771357852235,-840.90433578,0.00016161,2]
[405846691,1771357852245,-150.0,0.00016194,2]
[405846692,1771357852255,-150.0,0.000162,2]
[405846693,1771357852265,-500.0,0.00016233,2]
[405846694,1771357852275,-500.0,0.00016233,2]
[405846695,1771357852284,-500.0,0.00016233,2]
[405846696,1771357852296,-150.0,0.00016233,2]
[405846697,1771357852305,-2370677.3519292,0.00016261,2]
[405846698,1771357852315,-37913.6551296,0.00016261,2]
[405846699,1771357852325,-151.0,0.00016261,2]
[405846700,1771357852401,-151.0,0.00016261,2]
[405846701,1771357852411,-151.0,0.00016261,2]
[405846702,1771357852419,-151.0,0.00016261,2]
[405846703,1771357852428,-242.009051,0.00016261,2]
[405846704,1771357852438,-242.009051,0.00016261,2]
[405846705,1771357852449,-242.009051,0.00016261,2]
[405846706,1771357852459,-242.009051,0.00016261,2]
[405846707,1771357852470,-445.585732,0.00016261,2]
[405846708,1771357852480,-445.585732,0.00016261,2]
[405846709,1771357852490,-445.585732,0.00016261,2]
[405846710,1771357852501,-445.585732,0.00016261,2]
[405846711,1771357852511,-1573.195363,0.00016261,2]
[405846712,1771357852520,-1573.195363,0.00016261,2]
[405846713,1771357852531,-1573.195363,0.00016261,2]
[405846714,1771357852542,-1573.195363,0.00016261,2]
[405846715,1771357852552,-153.934786,0.00016261,2]
[405846716,1771357852562,-222.568912,0.00016261,2]
[405846717,1771357852572,-222.568912,0.00016261,2]
[405846718,1771357852582,-222.568912,0.00016261,2]
[405846719,1771357852591,-222.568912,0.00016261,2]
[405846720,1771357852602,-353.0,0.00016279,2]
[405846721,1771357852613,-500.0,0.00016288,2]
[405846722,1771357852624,-500.0,0.00016288,2]
[405846723,1771357852635,-649.65624143,0.00016288,2]
[405846724,1771357852645,-205.12968692,0.00016288,2]
[405846725,1771357852658,-1000.0,0.00016296,2]
[405846726,1771357852672,-5458.6352661,0.00016297,2]
[405846727,1771357852683,-217.15233878,0.00016331,2]
[405846728,1771357852694,-344.91441206,0.00016331,2]
[405846729,1771357852706,-220.15883999,0.00016343,2]
[405846730,1771357852716,-500.0,0.00016343,2]
[405846731,1771357852726,-200.0,0.00016351,2]
[405846732,1771357852739,-500.0,0.00016356,2]
[405846733,1771357852751,-500.0,0.00016356,2]
[405846734,1771357852761,-199.14,0.00016389,2]
[405846735,1771357852771,-500.0,0.00016397,2]
[405846736,1771357852780,-1000.0,0.000164,2]
[405846737,1771357852790,-353.0,0.00016411,2]
[405846738,1771357852799,-1000.0,0.00016417,2]
[405846739,1771357852809,-215.37,0.00016421,2]
[405846740,1771357852818,-199.14,0.00016436,2]
[405846741,1771357852828,-2789.9,0.00016438,2]
[405846742,1771357852838,-887.51,0.00016438,2]
[405846743,1771357852848,-151.02975848,0.00016438,2]
[405846744,1771357852858,-4479.21,0.00016438,2]
[405846745,1771357852867,-900.0,0.00016438,2]
[405846746,1771357852876,-151.0,0.00016438,2]
[405846747,1771357852886,-151.0,0.00016438,2]
[405846748,1771357852895,-151.0,0.00016438,2]
[405846749,1771357852905,-151.0,0.00016438,2]
[405846751,1771357852914,-158.396759,0.00016438,2]
[405846752,1771357852923,-151.0,0.00016438,2]
[405846753,1771357852932,-151.0,0.00016438,2]
[405846754,1771357852942,-151.0,0.00016438,2]
[405846755,1771357852951,-151.0,0.00016438,2]
[405846756,1771357852960,-1000.0,0.00016438,2]
[405846757,1771357852970,-249.294098,0.00016438,2]
[405846758,1771357852979,-249.294098,0.00016438,2]
[405846759,1771357852988,-249.294098,0.00016438,2]
[405846760,1771357852997,-249.294098,0.00016438,2]
[405846761,1771357853007,-249.294098,0.00016438,2]
[405846762,1771357853015,-249.294098,0.00016438,2]
[405846763,1771357853025,-249.294098,0.00016438,2]
[405846764,1771357853034,-249.294098,0.00016438,2]
[405846765,1771357853044,-500.0,0.00016452,2]
[405846766,1771357853053,-150.0,0.00016473,2]
[405846767,1771357853062,-353.0,0.00016479,2]
[405846768,1771357853071,-692.0,0.00016482,2]
[405846769,1771357853081,-80195.36791313,0.00016483,2]
[405846770,1771357853091,-234.09766445,0.00016483,2]
[405846771,1771357853100,-200.0,0.00016483,2]
[405846772,1771357853110,-969.08880292,0.00016483,2]
[405846773,1771357853119,-200.0,0.00016483,2]
[405846774,1771357853129,-199.14,0.00016483,2]
[405846775,1771357853138,-200.0,0.00016483,2]
[405846776,1771357853148,-2000.0,0.00016483,2]
[405846777,1771357853158,-2000.0,0.00016483,2]
[405846778,1771357853167,-2000.0,0.00016483,2]
[405846779,1771357853176,-2000.0,0.00016483,2]
[405846780,1771357853185,-2000.0,0.00016483,2]
[405846781,1771357853195,-2000.0,0.00016483,2]
[405846782,1771357853204,-200.0,0.00016483,2]
[405846783,1771357853213,-152.0,0.00016483,2]
[405846784,1771357853223,-152.0,0.00016483,2]
[405846785,1771357853233,-152.0,0.00016483,2]
[405846786,1771357853244,-215.36125356,0.00016492,2]
[405846787,1771357853254,-150.0,0.000165,2]
[405846788,1771357853263,-353.0,0.00016504,2]
[405846789,1771357853273,-824.0,0.00016507,2]
[405846790,1771357853282,-500.0,0.00016507,2]
[405846791,1771357853292,-1000.0,0.00016527,2]
[405846792,1771357853301,-997.0,0.0001653,2]
[405846793,1771357853311,-353.0,0.00016546,2]
[405846794,1771357853322,-353.0,0.00016552,2]
[405846795,1771357853333,-382.17209928,0.00016562,2]
[405846796,1771357853343,-353.0,0.00016577,2]
[405846797,1771357853353,-1035.74923491,0.00016612,2]
[405846798,1771357853363,-457.49810709,0.00016612,2]
[405846799,1771357853372,-3000.0,0.00016612,2]
[405846800,1771357853383,-1000.0,0.00016614,2]
[405846801,1771357853392,-997.0,0.0001662,2]
[405846802,1771357853402,-150.0,0.00016632,2]
[405846803,1771357853411,-1000.0,0.00016644,2]
[405846804,1771357853420,-200.0,0.00016648,2]
[405846805,1771357853430,-200.0,0.00016648,2]
[405846806,1771357853445,-200.0,0.00016648,2]
[405846807,1771357853467,-200.0,0.00016648,2]
[405846808,1771357853487,-1000.0,0.00016668,2]
[405846809,1771357853497,-1000.0,0.0001667,2]
[405846810,1771357853507,-824.0,0.00016682,2]
[405846811,1771357853516,-1000.0,0.00016712,2]
[405846812,1771357853525,-199.23,0.00016712,2]
[405846813,1771357853534,-842.0,0.0001672,2]
[405846814,1771357853543,-824.0,0.00016737,2]
[405846815,1771357853552,-162.702,0.00016752,2]
[405846816,1771357853561,-3551.659,0.00016752,2]
[405846817,1771357853571,-1244.629,0.00016752,2]
[405846818,1771357853582,-1338.0,0.00016752,2]
[405846819,1771357853592,-619.543,0.00016752,2]
[405846820,1771357853602,-1275.0,0.00016752,2]
[405846821,1771357853611,-150.248,0.00016752,2]
[405846822,1771357853620,-919.0,0.00016752,2]
[405846823,1771357853630,-5973.0,0.00016752,2]
[405846824,1771357853640,-166.11141928,0.00016759,2]
[405846825,1771357853649,-1000.0,0.0001676,2]
[405846826,1771357853659,-824.0,0.00016775,2]
[405846827,1771357853672,-824.0,0.00016777,2]
[405846828,1771357853682,-150.0,0.000168,2]
[405846829,1771357853691,-200.0,0.00016813,2]
[405846830,1771357853700,-200.0,0.00016813,2]
[405846831,1771357853711,-200.0,0.00016813,2]
[405846832,1771357853720,-302.0,0.00016813,2]
[405846833,1771357853729,-213.0,0.00016813,2]
[405846834,1771357853740,-200.0,0.00016814,2]
[405846835,1771357853750,-200.0,0.00016814,2]
[405846836,1771357853760,-200.0,0.00016814,2]
[405846837,1771357853770,-200.0,0.00016814,2]
[405846838,1771357853780,-420.62043768,0.0001683,2]
[405846839,1771357853789,-1000.0,0.0001683,2]
[405846840,1771357853799,-3354.94878458,0.00016861,2]
[405846841,1771357853809,-1000.0,0.00016867,2]
[405846842,1771357853819,-231.0,0.00016868,2]
[405846843,1771357853829,-1000.0,0.00016878,2]
[405846844,1771357853839,-225.18697532,0.00016879,2]
[405846845,1771357853849,-357.6762453,0.00016879,2]
[405846846,1771357853859,-1000.0,0.00016899,2]
[405846847,1771357853869,-473.31058807,0.00016919,2]
[405846848,1771357853879,-1088.37215301,0.00016919,2]
[405846849,1771357853889,-150.0,0.00016945,2]
[405846850,1771357853900,-1000.0,0.00016974,2]
[405846851,1771357853910,-200.0,0.00016982,2]
[405846852,1771357853921,-200.0,0.00016982,2]
[405846853,1771357853931,-200.0,0.00016982,2]
[405846854,1771357853941,-200.0,0.00016982,2]
[405846855,1771357853950,-1000.0,0.00016986,2]
[405846856,1771357853960,-300.0,0.00016999,2]
[405846857,1771357853970,-300.0,0.00016999,2]
[405846858,1771357853980,-666.0,0.00016999,2]
[405846859,1771357853990,-1025374.60777986,0.00017,2]
[405846860,1771357854000,-162.238527,0.00017,2]
[405846861,1771357854010,-206.826734,0.00017,2]
[405846862,1771357854020,-151.0,0.00017,2]
[405846863,1771357854029,-151.0,0.00017,2]
[405846864,1771357854039,-151.0,0.00017,2]
[405846865,1771357854049,-151.0,0.00017,2]
[405846866,1771357854059,-151.0,0.00017,2]
[405846867,1771357854068,-151.0,0.00017,2]
[405846868,1771357854077,-151.0,0.00017,2]
[405846869,1771357854087,-242.009051,0.00017,2]
[405846870,1771357854096,-242.009051,0.00017,2]
[405846871,1771357854106,-242.009051,0.00017,2]
[405846872,1771357854115,-242.009051,0.00017,2]
[405846873,1771357854124,-445.585732,0.00017,2]
[405846874,1771357854133,-445.585732,0.00017,2]
[405846875,1771357854143,-445.585732,0.00017,2]
[405846876,1771357854152,-445.585732,0.00017,2]
[405846877,1771357854162,-300.0,0.00017,2]
[405846878,1771357854171,-1573.195363,0.00017,2]
[405846879,1771357854182,-1573.195363,0.00017,2]
[405846880,1771357854192,-1573.195363,0.00017,2]
[405846881,1771357854201,-1573.195363,0.00017,2]
[405846882,1771357854210,-351.95234324,0.00017,2]
[405846883,1771357854221,-222.568912,0.00017,2]
[405846884,1771357854231,-249.294098,0.00017,2]
[405846885,1771357854240,-222.568912,0.00017,2]
[405846886,1771357854249,-249.294098,0.00017,2]
[405846887,1771357854259,-222.568912,0.00017,2]
[405846888,1771357854269,-249.294098,0.00017,2]
[405846889,1771357854278,-222.568912,0.00017,2]
[405846890,1771357854287,-249.294098,0.00017,2]
[405846891,1771357854296,-919.0,0.00017006,2]
[405846892,1771357854305,-956.0,0.0001704,2]
[405846893,1771357854315,-164.0,0.0001704,2]
[405846894,1771357854324,-1000.0,0.00017044,2]
[405846895,1771357854335,-298.0,0.00017046,2]
[405846896,1771357854344,-824.0,0.00017074,2]
[405846897,1771357854354,-1000.0,0.00017079,2]
[405846898,1771357854363,-1751.06105486,0.00017096,2]
[405846899,1771357854373,-300.0,0.00017098,2]
[405846900,1771357854383,-300.0,0.00017098,2]
[405846901,1771357854394,-666.0,0.00017098,2]
[405846902,1771357854403,-996.7,0.00017099,2]
[405846903,1771357854412,-996.7,0.00017099,2]
[405846904,1771357854422,-996.7,0.00017099,2]
[405846905,1771357854432,-996.7,0.00017099,2]
[405846906,1771357854441,-996.7,0.00017099,2]
[405846907,1771357854451,-2052.7,0.00017099,2]
[405846908,1771357854461,-2052.7,0.00017099,2]
[405846909,1771357854471,-2052.7,0.00017099,2]
[405846910,1771357854480,-2052.7,0.00017099,2]
[405846911,1771357854490,-2052.77678348,0.00017099,2]
[405846912,1771357854499,-300.0,0.00017099,2]
[405846913,1771357854509,-300.0,0.00017099,2]
[405846914,1771357854518,-666.0,0.00017099,2]
[405846915,1771357854527,-150.0,0.000171,2]
[405846916,1771357854537,-196837.22809,0.000171,2]
[405846917,1771357854547,-820.0,0.000171,2]
[405846918,1771357854557,-500.0,0.00017104,2]
[405846919,1771357854567,-200.0,0.00017104,2]
[405846920,1771357854577,-1000.0,0.00017105,2]
[405846921,1771357854588,-1000.0,0.00017108,2]
[405846922,1771357854597,-1000.0,0.00017109,2]
[405846923,1771357854607,-919.0,0.00017123,2]
[405846924,1771357854616,-1000.0,0.00017128,2]
[405846925,1771357854626,-1000.0,0.0001714,2]
[405846926,1771357854635,-1000.0,0.00017142,2]
[405846927,1771357854644,-200.0,0.00017152,2]
[405846928,1771357854654,-200.0,0.00017152,2]
[405846929,1771357854663,-200.0,0.00017152,2]
[405846930,1771357854676,-200.0,0.00017152,2]
[405846931,1771357854685,-1000.0,0.00017153,2]
[405846932,1771357854695,-1740.67806815,0.0001716,2]
[405846933,1771357854704,-1751.06105486,0.00017178,2]
[405846934,1771357854715,-1000.0,0.00017183,2]
[405846935,1771357854724,-919.0,0.00017185,2]
[405846936,1771357854734,-1000.0,0.00017193,2]
[405846937,1771357854745,-350.0,0.00017199,2]
[405846938,1771357854755,-1751.06105486,0.00017233,2]
[405846939,1771357854764,-150.0,0.00017237,24]
[405846940,1771357854774,-182.0,0.00017237,24]
[405846941,1771357854784,-1000.0,0.0001726,2]
[405846942,1771357854793,-1000.0,0.00017285,2]
[405846943,1771357854803,-350.0,0.00017287,2]
[405846944,1771357854812,-1000.0,0.00017294,2]
[405846945,1771357854822,-1000.0,0.00017302,2]
[405846946,1771357854832,-1751.06105486,0.00017315,2]
[405846947,1771357854842,-150.0,0.00017317,2]
[405846948,1771357854852,-377.0,0.00017319,2]
[405846949,1771357854861,-2835.0,0.0001736,2]
[405846950,1771357854871,-1751.06105486,0.0001737,2]
[405846951,1771357854881,-150.0,0.000174,2]
[405846952,1771357854890,-2555.4951848,0.000174,5]
[405846953,1771357854900,-1000.0,0.00017409,2]
[405846954,1771357854910,-233.51889341,0.00017427,2]
[405846955,1771357854920,-370.91026638,0.00017427,2]
[405846956,1771357854930,-1000.0,0.00017431,2]
[405846957,1771357854939,-245.08891232,0.00017434,2]
[405846958,1771357854948,-2000.0,0.00017452,7]
[405846959,1771357854959,-1751.06105486,0.00017452,2]
[405846960,1771357854969,-1000.0,0.00017459,2]
[405846961,1771357854979,-1000.0,0.0001746,2]
[405846962,1771357854990,-377.0,0.00017464,2]
[405846963,1771357855000,-1000.0,0.00017481,2]
[405846964,1771357855011,-1000.0,0.00017485,2]
[405846965,1771357855021,-1000.0,0.0001749,2]
[405846966,1771357855031,-150.0,0.00017491,2]
[405846967,1771357855042,-200.0,0.00017491,2]
[405846968,1771357855052,-250.0,0.00017491,2]
[405846969,1771357855062,-231.713,0.00017491,2]
[405846970,1771357855072,-197.764,0.00017491,2]
[405846971,1771357855081,-275.559,0.00017491,2]
[405846972,1771357855091,-160.03,0.00017491,2]
[405846973,1771357855100,-250.0,0.00017491,2]
[405846974,1771357855110,-192.151,0.00017491,2]
[405846975,1771357855120,-164.867,0.00017491,2]
[405846976,1771357855130,-250.0,0.00017491,2]
[405846977,1771357855141,-213.324,0.00017491,2]
[405846978,1771357855152,-174.0,0.00017491,2]
[405846979,1771357855161,-234.143,0.00017491,2]
[405846980,1771357855172,-1000.0,0.00017504,2]
[405846981,1771357855182,-1751.06105486,0.00017507,2]
[405846982,1771357855192,-1000.0,0.00017513,2]
[405846983,1771357855203,-2439.614877,0.00017525,2]
[405846984,1771357855213,-1000.0,0.00017534,2]
[405846985,1771357855223,-1000.0,0.00017548,2]
[405846986,1771357855234,-919.0,0.00017552,2]
[405846987,1771357855244,-1000.0,0.00017587,2]
[405846988,1771357855254,-1751.06105486,0.00017589,2]
[405846989,1771357855263,-350.0,0.0001759,2]
[405846990,1771357855273,-300.0,0.00017599,2]
[405846991,1771357855284,-300.0,0.00017599,2]
[405846992,1771357855294,-350.0,0.00017627,2]
[405846993,1771357855305,-250.0,0.00017632,24]
[405846994,1771357855315,-250.0,0.00017632,24]
[405846995,1771357855325,-250.0,0.00017632,24]
[405846996,1771357855335,-324.0,0.00017632,24]
[405846997,1771357855344,-1000.0,0.00017634,2]
[405846998,1771357855354,-383.0,0.00017639,2]
[405846999,1771357855364,-300.0,0.00017639,2]
[405847000,1771357855373,-300.0,0.00017639,2]
[405847001,1771357855384,-300.0,0.00017639,2]
[405847002,1771357855393,-10722.1227909,0.0001764,2]
[405847003,1771357855404,-1015.39357733,0.0001764,2]
[405847004,1771357855416,-1146.95526923,0.0001764,2]
[405847005,1771357855427,-1046.72953542,0.0001764,2]
[405847006,1771357855437,-1095.0427597,0.0001764,2]
[405847007,1771357855449,-1117.10919331,0.0001764,2]
[405847008,1771357855459,-1074.00542316,0.0001764,2]
[405847009,1771357855470,-1012.00323793,0.0001764,2]
[405847010,1771357855480,-1103.26091478,0.0001764,2]
[405847011,1771357855491,-1002.03148339,0.0001764,2]
[405847012,1771357855500,-1133.30500333,0.0001764,2]
[405847013,1771357855513,-1073.31067585,0.0001764,2]
[405847014,1771357855524,-1000.15673392,0.0001764,2]
[405847015,1771357855534,-1011.4898232,0.0001764,2]
[405847016,1771357855544,-1127.48459639,0.0001764,2]
[405847017,1771357855555,-1043.87211527,0.0001764,2]
[405847018,1771357855564,-1107.19177218,0.0001764,2]
[405847019,1771357855575,-1124.39166795,0.0001764,2]
[405847020,1771357855584,-1051.47293138,0.0001764,2]
[405847021,1771357855595,-1001.03133046,0.0001764,2]
[405847022,1771357855605,-1140.42076407,0.0001764,2]
[405847023,1771357855616,-1013.61170319,0.0001764,2]
[405847024,1771357855625,-1398.29558054,0.0001764,2]
[405847025,1771357855637,-1751.06105486,0.00017644,2]
[405847026,1771357855649,-350.0,0.00017668,2]
[405847027,1771357855659,-150.0,0.00017693,2]
[405847028,1771357855673,-300.0,0.00017699,2]
[405847029,1771357855683,-300.0,0.00017699,2]
[405847030,1771357855693,-150.0,0.000177,2]
[405847031,1771357855702,-784.32813885,0.000177,2]
[405847032,1771357855714,-403.0,0.000177,5]
[405847033,1771357855725,-10700.0,0.000177,6]
[405847034,1771357855735,-1000.0,0.00017704,2]
[405847035,1771357855750,-1000.0,0.00017707,2]
[405847036,1771357855760,-1000.0,0.0001771,2]
[405847037,1771357855770,-300.0,0.00017724,2]
[405847038,1771357855781,-500.0,0.00017726,7]
[405847039,1771357855792,-1751.06105486,0.00017726,2]
[405847040,1771357855803,-150.0,0.00017737,2]
[405847041,1771357855814,-151.0,0.00017743,5]
[405847042,1771357855824,-919.0,0.00017749,2]
[405847043,1771357855835,-1000.0,0.00017755,2]
[405847044,1771357855849,-150.0,0.00017772,2]
[405847045,1771357855865,-1000.0,0.00017772,2]
[405847046,1771357855874,-1751.06105486,0.00017781,2]
[405847047,1771357855884,-300.0,0.00017799,2]
[405847048,1771357855894,-300.0,0.00017799,2]
[405847049,1771357855904,-10700.0,0.000178,6]
[405847050,1771357855913,-150.0,0.00017802,12]
[405847051,1771357855923,-150.0,0.00017802,12]
[405847052,1771357855932,-150.0,0.00017802,12]
[405847053,1771357855942,-190.0,0.00017802,12]
[405847054,1771357855951,-300.0,0.00017807,2]
[405847055,1771357855962,-300.0,0.00017807,2]
[405847056,1771357855972,-444.64,0.00017808,2]
[405847057,1771357855981,-500.0,0.00017808,2]
[405847058,1771357855991,-500.0,0.00017808,2]
[405847059,1771357856000,-500.0,0.00017808,2]
[405847060,1771357856010,-500.0,0.00017808,2]
[405847061,1771357856020,-500.0,0.00017808,2]
[405847062,1771357856029,-500.0,0.00017808,2]
[405847063,1771357856039,-500.0,0.00017808,2]
[405847064,1771357856048,-500.0,0.00017808,2]
[405847065,1771357856058,-500.0,0.00017808,2]
[405847066,1771357856067,-500.0,0.00017808,2]
[405847067,1771357856077,-500.0,0.00017808,2]
[405847068,1771357856086,-500.0,0.00017808,2]
[405847069,1771357856096,-500.0,0.00017808,2]
[405847070,1771357856105,-500.0,0.00017808,2]
[405847071,1771357856115,-500.0,0.00017808,2]
[405847072,1771357856124,-500.0,0.00017808,2]
[405847073,1771357856134,-500.0,0.00017808,2]
[405847074,1771357856143,-500.0,0.00017808,2]
[405847075,1771357856152,-500.0,0.00017808,2]
[405847076,1771357856162,-178.48493337,0.00017808,2]
[405847077,1771357856172,-1000.0,0.00017808,2]
[405847078,1771357856181,-800.0,0.00017808,2]
[405847079,1771357856191,-311.844149,0.00017808,2]
[405847080,1771357856201,-311.844149,0.00017808,2]
[405847081,1771357856210,-311.844149,0.00017808,2]
[405847082,1771357856220,-311.844149,0.00017808,2]
[405847083,1771357856230,-311.844149,0.00017808,2]
[405847084,1771357856239,-311.844149,0.00017808,2]
[405847085,1771357856249,-311.844149,0.00017808,2]
[405847086,1771357856258,-311.844149,0.00017808,2]
[405847087,1771357856268,-311.844149,0.00017808,2]
[405847088,1771357856278,-250.0,0.00017808,20]
[405847089,1771357856287,-311.844149,0.00017808,2]
[405847090,1771357856297,-250.0,0.00017808,20]
[405847091,1771357856306,-311.844149,0.00017808,2]
[405847092,1771357856315,-250.0,0.00017808,20]
[405847093,1771357856325,-311.844149,0.00017808,2]
[405847094,1771357856335,-250.0,0.00017808,20]
[405847095,1771357856345,-250.0,0.00017808,20]
[405847096,1771357856355,-250.0,0.00017808,20]
[405847097,1771357856364,-250.0,0.00017808,20]
[405847098,1771357856374,-250.0,0.00017808,20]
[405847099,1771357856383,-250.0,0.00017808,20]
[405847100,1771357856393,-250.0,0.00017808,20]
[405847101,1771357856403,-250.0,0.00017808,20]
[405847102,1771357856413,-250.0,0.00017808,20]
[405847103,1771357856423,-250.0,0.00017808,20]
[405847104,1771357856434,-250.0,0.00017808,20]